Cogmind - Beta 13 @@@ ROGUE MODE // 2024.05.21 @ 01:20:38 Player: TurnLeft25 Result: Destroyed by DK-J2A(R) with Subdweller Machine Gun Performance ------------- Evolutions (0) 0 Regions Visited (3) 600 Robots Destroyed (5) 25 Value Destroyed (177) 177 Prototype IDs (14) 280 Alien Tech Used (0) 0 Bonus (-25) -25 TOTAL SCORE: 1057 Bonus ------- Friendly Fire -25 Cogmind --------- Core Integrity 0/250 Matter 149/300 Energy 100/100 System Corruption 7% Temperature Cool (0) Movement Treading (160) Location -10/Subcaves Parts ------- > --- POWER (1) -------- (None) > --- PROPULSION (2) --- Spiked Treads > --- UTILITY (2) ------ (None) > --- WEAPON (2) ------- Ripper > --- INVENTORY (5) ---- Hacking Suite Rainbow Chip Peak State ------------ > --- POWER ------------ Light Ion Engine > --- PROPULSION ------- Light Treads Light Treads > --- UTILITY ---------- Small Storage Unit Targeting Computer > --- WEAPON ----------- Assault Rifle Battle Cannon > --- INVENTORY -------- Hacking Suite Rocket Launcher [Rating: 8] Favorites ----------- Power Light Ion Engine Engine Light Ion Engine Propulsion Light Treads Treads Light Treads Leg Aluminum Leg Utility Small Storage Unit Storage Small Storage Unit Processor Targeting Computer Weapon Assault Rifle Ballistic Gun Assault Rifle Ballistic Cannon Battle Cannon Launcher Rocket Launcher Slashing Weapon Ripper Build | -11 -10 -10 -10 ------- Run | Yrd Mat Min Sub Slots Evolved . | . . . . Power . | . . . . Propulsion . | . . . . Utility . | . . . . Weapon . | . . . . Parts Attached 17 | 6 2 1 8 Power 2 | 1 . . 1 Engine 2 | 1 . . 1 Core . | . . . . Reactor . | . . . . Propulsion 5 | 2 . . 3 Treads 3 | . . . 3 Leg 2 | 2 . . . Wheel . | . . . . Hover . | . . . . Flight . | . . . . Utility 2 | 1 1 . . Device . | . . . . Storage 1 | 1 . . . Processor 1 | . 1 . . Hackware . | . . . . Protection . | . . . . Artifact . | . . . . Weapon 8 | 2 1 1 4 Energy Gun . | . . . . Energy Cannon . | . . . . Ballistic Gun 3 | 2 1 . . Ballistic Cannon 2 | . . . 2 Launcher 2 | . . 1 1 Special Weapon . | . . . . Impact Weapon . | . . . . Slashing Weapon 1 | . . . 1 Piercing Weapon . | . . . . Special Melee Weapon . | . . . . Unidentified Prototypes . | . . . . Parts Lost 12 | . . 3 9 Power 2 | . . 1 1 Propulsion 4 | . . 1 3 Utility 2 | . . . 2 Weapon 4 | . . 1 3 Highest Loss Streak 6 | . . 3 6 To Critical Strikes . | . . . . Average Slot Usage (%) 78 | . 97 68 78 Engine 8 | . 14 2 10 Treads 14 | . . . 22 Leg 9 | . 28 17 2 Storage 13 | . 14 14 12 Processor 13 | . 11 14 13 Ballistic Gun 11 | . 28 17 5 Ballistic Cannon 2 | . . . 3 Launcher 4 | . . 1 7 Naked Turns . | . . . . Heaviest Build 12 | 11 12 12 12 Greatest Support 40 | 20 20 20 40 Greatest Overweight (x) 1 | . . 1 1 Average Overweight (x) . | . . . . Largest Inventory Capacity 8 | 8 8 8 8 Average Capacity 7 | 7 8 8 7 Most Carried 5 | 5 5 5 5 Average Carried 3 | 3 3 4 3 Final Capacity 8 | 8 8 8 5 Final Carried 4 | 4 4 4 2 Class Distribution -------------------- 100% | Mutant Dominant Class ---------------- Mutant | -10/Materials Mutant | -10/Mines Mutant | -10/Subcaves Resources | -11 -10 -10 -10 ----------- Run | Yrd Mat Min Sub Matter Collected 532 | 260 13 48 211 Remotely . | . . . . Salvage Created 190 | . 13 45 132 Parts 8 | . 3 . 5 Haulers Intercepted . | . . . . Recyclers Shooed . | . . . . Parts Field Recycled . | . . . . Retrieved Matter . | . . . . Parts Self-Destructed 4 | . . . 4 Prevented . | . . . . Kills | -11 -10 -10 -10 ------- Run | Yrd Mat Min Sub Combat Hostiles Destroyed 8 | . . 4 4 Guns 6 | . . 4 2 AOE 2 | . . . 2 Classes Destroyed 4 | . 1 1 2 Operator 1 | . 1 . . Grunt 2 | . . . 2 Subdweller 2 | . . . 2 Assembled 4 | . . 4 . Best Kill Streak 4 | . 1 4 2 Combat Bots Only 4 | . . 4 2 Max Kills in Single Turn 2 | . 1 1 2 Gunslinging . | . . . . Exploded 2 | . . . 2 Melee . | . . . . Uniques/NPCs Destroyed . | . . . . Combat | -11 -10 -10 -10 -------- Run | Yrd Mat Min Sub Hostile Shots Fired 97 | . . 40 57 Missed 30 | . . 8 22 Damage Taken 1498 | . . 585 913 Core 261 | . . 118 143 Absorbed by Shields . | . . . . Core Remaining (%) 100 | 100 . . . Volleys Fired 51 | . 5 16 30 Largest 2 | . 2 2 2 Hottest 59 | . 40 40 59 Shots Fired 78 | . 10 22 46 Gun 52 | . 10 20 22 Cannon 15 | . . . 15 Launcher 11 | . . 2 9 Special . | . . . . Kinetic 67 | . 10 20 37 Thermal . | . . . . Explosive 11 | . . 2 9 Electromagnetic . | . . . . Robot Hit Streak 9 | . 1 6 9 Robot Miss Streak 2 | . 1 2 2 Penetration Max . | . . . . Secondary Targets 1 | . . 1 . Max Gunslinging Chain 1 | . . 1 . Shots Hit Robots 50 | . 5 15 30 Core Hits 17 | . 1 7 9 Critical Kills . | . . . . Critical Parts Destroyed . | . . . . Critical Strikes . | . . . . Melee Attacks 1 | . . . 1 Impact . | . . . . Slashing 1 | . . . 1 Piercing . | . . . . Sneak Attacks . | . . . . Combat Hostiles . | . . . . Follow-up Attacks . | . . . . Damage Inflicted 836 | . 68 208 560 Guns 505 | . 68 208 229 Cannons 203 | . . . 203 Explosions 128 | . . . 128 Melee . | . . . . Ramming . | . . . . Kinetic 708 | . 68 208 432 Thermal . | . . . . Explosive 128 | . . . 128 Electromagnetic . | . . . . Impact . | . . . . Slashing . | . . . . Piercing . | . . . . Highest Corruption 7 | . . 7 7 Average Corruption 6 | . . 6 7 Corruption Purged . | . . . . Corruption Blocked . | . . . . Effects 24 | . . 6 18 Message Errors 6 | . . 4 2 Matter Fused 3 | . . . 3 Heat Flow Errors 2 | . . 1 1 Energy Discharges 2 | . . . 2 Parts Rejected 1 | . . . 1 Data Loss (minor) 7 | . . 1 6 Data Loss (major) 1 | . . . 1 Misfires 1 | . . . 1 Weapon Failures 1 | . . . 1 Overload Shots . | . . . . Overflow Damage . | . . . . Projectiles . | . . . . Explosions . | . . . . Melee . | . . . . Knockbacks 6 | . . . 6 Impact . | . . . . Kinetic 6 | . . . 6 Secondary . | . . . . Self-Inflicted Damage 164 | . . 11 153 Shots 6 | . . 1 5 Rammed . | . . . . Targets Rammed . | . . . . Kicked . | . . . . Crushed . | . . . . Highest Temperature 235 | . . 235 99 Average Temperature 71 | . . 73 55 Received Heat Transfer 158 | . . 140 18 Effects 1 | . . 1 . Interference 1 | . . 1 . Siege Activations . | . . . . Robots Corrupted . | . . . . Combat Hostiles . | . . . . Parts Fried . | . . . . Impact Corruptions . | . . . . Robots Melted . | . . . . Combat Hostiles . | . . . . Parts Melted . | . . . . Heat Transferred . | . . . . Parts Sabotaged . | . . . . Parts Stolen . | . . . . Parts Stripped . | . . . . Power Chain Reactions . | . . . . Alert | -11 -10 -10 -10 ------- Run | Yrd Mat Min Sub Peak Influence 59 | . 59 22 . Initial 22 | . . 22 . Average 7 | . 15 5 . Maximum Alert Level . | . . . . Low Security (%) 100 | 100 100 100 . Level 1 . | . . . . Level 2 . | . . . . Level 3 . | . . . . Level 4 . | . . . . Level 5 . | . . . . High Security . | . . . . Max Security . | . . . . Squads Dispatched 1 | . 1 . . Investigation . | . . . . Extermination . | . . . . Reinforcement 1 | . 1 . . Assault . | . . . . Garrison . | . . . . Intercept . | . . . . Searches Triggered . | . . . . Construction Impeded . | . . . . Haulers Reinforced . | . . . . Active Scanning Responses . | . . . . Cargo Convoy Interrupts . | . . . . Stealth | -11 -10 -10 -10 --------- Run | Yrd Mat Min Sub Distress Signals 2 | . . 2 . Communications Jammed . | . . . . Distress Signals . | . . . . Times Spotted 27 | . 3 19 5 Peak Tracking Total 19 | . 1 19 2 Tactical Retreats 1 | . . 1 . Traps | -11 -10 -10 -10 ------- Run | Yrd Mat Min Sub Traps Triggered 1 | . . . 1 Indirectly . | . . . . Trap Hack Attempts . | . . . . Triggered . | . . . . Disarmed . | . . . . Reprogrammed . | . . . . Reused . | . . . . Traps Extracted . | . . . . Installed . | . . . . Triggered . | . . . . Machines | -11 -10 -10 -10 ---------- Run | Yrd Mat Min Sub Machines Disabled 3 | . . . 3 Max in Single Turn 3 | . . . 3 Machines Repaired . | . . . . Machines Dismantled . | . . . . Machines Sabotaged . | . . . . Overloaded Fab Kills . | . . . . Hacking | -11 -10 -10 -10 --------- Run | Yrd Mat Min Sub Machines Accessed 2 | . 1 . 1 Terminals 1 | . 1 . . Fabricators . | . . . . Repair Stations . | . . . . Recycling Units . | . . . . Scanalyzers . | . . . . Garrison Access . | . . . . Total Hacks 18 | . 9 . 9 Successful 14 | . 5 . 9 Failed 4 | . 4 . . Catastrophic 1 | . 1 . . Database Lockouts . | . . . . Manual 8 | . 8 . . Terminals 9 | . 9 . . Fabricators . | . . . . Repair Stations . | . . . . Recycling Units . | . . . . Scanalyzers . | . . . . Garrison Access . | . . . . Terminal Hacks 14 | . 5 . 9 Record 8 | . . . 8 Prototype ID Bank 4 | . 4 . . Zone Layout 1 | . 1 . . Derelict Proto ID Bank 1 | . . . 1 Fabricator Hacks . | . . . . Repair Station Hacks . | . . . . Recycling Unit Hacks . | . . . . Scanalyzer . | . . . . Garrison Access Hacks . | . . . . Unauthorized Hacks . | . . . . Terminals . | . . . . Fabricators . | . . . . Repair Stations . | . . . . Recycling Units . | . . . . Scanalyzers . | . . . . Garrison Access . | . . . . Data Cores Recovered . | . . . . Used . | . . . . Hacking Detections 1 | . 1 . . Full Trace Events . | . . . . Feedback Events . | . . . . Feedback Blocked . | . . . . Robot Schematics Acquired . | . . . . Robots Built . | . . . . Authchips . | . . . . Time . | . . . . Total Robot Build Rating . | . . . . Part Schematics Acquired . | . . . . Parts Built . | . . . . Authchips . | . . . . Time . | . . . . Total Part Build Rating . | . . . . Parts Repaired . | . . . . Time . | . . . . Parts Recycled . | . . . . Recycled Matter . | . . . . Retrieved Matter . | . . . . Retrieved Components . | . . . . Parts Scanalyzed . | . . . . Part Schematics Acquired . | . . . . Parts Damaged . | . . . . Bothacking | -11 -10 -10 -10 ------------ Run | Yrd Mat Min Sub Used RIF Installer . | . . . . Robots Hacked . | . . . . Non-combat . | . . . . Combat . | . . . . Robot Hacks Applied . | . . . . Relay Couplers Released . | . . . . Fabnet Peak Effective % . | . . . . Robots Rewired . | . . . . Allies Hacked . | . . . . Hacks Repelled . | . . . . Allies | -11 -10 -10 -10 -------- Run | Yrd Mat Min Sub Total Allies . | . . . . Largest Group . | . . . . Highest-Rated Group . | . . . . Highest-Rated Ally . | . . . . Total Orders . | . . . . Ally Attacks . | . . . . Total Damage . | . . . . Kills . | . . . . Allies Corrupted . | . . . . Allies Melted . | . . . . Intel | -11 -10 -10 -10 ------- Run | Yrd Mat Min Sub Robot Analysis Total . | . . . . Derelict Logs Recovered 2 | . . 1 1 Drone Launches . | . . . . Drone Recoveries . | . . . . Exploration | -11 -10 -10 -10 ------------- Run | Yrd Mat Min Sub Turns Passed 972 | 61 122 219 570 Spaces Moved 587 | 45 86 144 312 Core 10 | 10 . . . Treads 243 | . . . 243 Legs 334 | 35 86 144 69 Wheels . | . . . . Hover . | . . . . Flight . | . . . . Fastest Speed 50 | 50 120 120 120 Average Speed 137 | 104 120 125 152 Slowest Speed 190 | 120 120 190 190 Overloaded Moves . | . . . . Propulsion Burnouts . | . . . . Robots Hopped . | . . . . Cave-ins Triggered . | . . . . Exploration Rate (%) 22 | 4 27 34 23 Regions Visited 3 Branch Regions 2 Pre-discovered Areas 1 | . . . 1 Known Exits Taken 1 | . . 1 . Unknown Exits Taken 2 | 1 1 . . Scrap Searched 1 | . . . 1 Spaces Dug 27 | . . 24 3 Terrain Destroyed 87 | . . 24 63 Melee . | . . . . Projectile 1 | . . . 1 AOE 86 | . . 24 62 Terrain Rammed . | . . . . Walls Destroyed . | . . . . Machines Disabled . | . . . . Actions | -11 -10 -10 -10 --------- Run | Yrd Mat Min Sub Total 670 | 58 95 161 356 Wait . | . . . . Move 584 | 44 85 143 312 Hop . | . . . . Pick Up 16 | 8 2 1 5 Fast Attach 2 | 2 . . . Attach 14 | 4 2 1 7 Detach . | . . . . Swap 1 | . . . 1 Drop 1 | . 1 . . Fire 51 | . 5 16 30 Melee 1 | . . . 1 Ram . | . . . . Kick . | . . . . Crush . | . . . . Escape Stasis . | . . . . Rewire . | . . . . Trap . | . . . . Miscellaneous . | . . . . Route ------- -11/Scrapyard -10/Materials -10/Mines (discovered 2 exits: [*Mat] / *Sub) -10/Subcaves (discovered 1 exit: [*Mat]) History --------- Turn | Location | Event 13 | -11/Scrapyard | Discovered new exit (range 14) 62 | -11/Scrapyard | Entered Materials 163 | -10/Materials | Discovered new exit (range 9) 184 | -10/Materials | Entered Mines 185 | -10/Mines | Assembled infested the area 190 | -10/Mines | Assisted by a Guerilla fighting off Assembled 195 | -10/Mines | Discovered new exit (range 14) 266 | -10/Mines | Lost 3 parts (1p1n1w) 279 | -10/Mines | Received a Rocket Launcher from a helpful Derelict 308 | -10/Mines | Found a hidden stash of uninstalled traps 312 | -10/Mines | Build established: Mutant 357 | -10/Mines | Identified exit to Subcaves 403 | -10/Mines | Entered Subcaves 418 | -10/Subcaves | Learned location of Zion (-7) 531 | -10/Subcaves | Core integrity fell below 50% 590 | -10/Subcaves | Discovered new exit (range 9) 666 | -10/Subcaves | Visited 4L-MR0's lab 695 | -10/Subcaves | Found Rainbow Chip 833 | -10/Subcaves | A swath of the cavern ceiling suddenly collapsed 919 | -10/Subcaves | Ambushed by Subdweller buried in earth 956 | -10/Subcaves | Core integrity fell below 20% 973 | -10/Subcaves | Destroyed by DK-J2A(R) with Subdweller Machine Gun Last Messages --------------- 00921_ The unstable cave ceiling collapses. 00924_ Rocket Launcher destroyed. 00926_ Lgt. Treads destroyed. 00927_ Heat Sink fries itself beyond repair. 00928_ Sml. Storage Unit destroyed. 00929_ Particle Gun fries itself beyond repair. 00929_ Subatomizers dissect the Aluminum Leg. 00930_ Targeting Computer destroyed. 00931_ System corrupted: Heat flow error (+142). 00933_ The unstable cave ceiling collapses. 00934_ Acquired 11 matter. 00935_ Sml. Laser fries itself beyond repair. 00935_ The unstable cave ceiling collapses. 00937_ Aluminum Leg fries itself beyond repair. 00939_ Acquired 37 matter. 00951_ ARW86I4EQX/IYGQKFIB OVIBHMZR3RO,AVQQB8 00956_ Acquired Ripper. 00959_ Lgt. Treads destroyed. 00962_ The unstable cave ceiling collapses. 00967_ System corrupted: Component data lost. Map ----- +----------------------------------------------------+ | ?## ##?# ###????????????????? | | ?### # # #?????????????????? | | ???# ### ## ## ##?????????????????? | | ##?## ####### ##?????????????????? | | #???## #?????## #?????????????????? | | ### ##????####??????# #?????????????????? | | ###??######??????????????## ##?????????????????? | | #????????????????????????## ##?????????????????? | | ?????????????????????????# #?????????????????? | | ?????????????????????????# ##?????????????????? | | ?????????????????????????# ##??????????????????? | | ????????????????????????## ##???????????????????? | | ????????????????????????# #????????????????????? | | ????????????????????????# ##???????????????????? | | ????????????????????????## #???????????????????? | | ?????????????????????????# #???????????????????? | | ?????????????????????????# #???????????????????? | | ?????????????????????????# ##??????????????????? | | ?????????????????????????# ###????????????????? | | ?????????????????????????# ##????????????????? | | ?????????????????????????# ##????????????????? | | ?????????????????????????# #????????????????? | | ????????????????????????## # ##???????????????? | | ???????????????####??#### #???????????????? | | ???????????????# #### ## #???????????????? | | ???????????????# ## @R ##???????????????? | | ???????????????# ##????????????????? | | ??????????????## # #????????????????? | | ??????????????# #????????????????? | | ??????????????# #### #????????????????? | | ??????????????## #?? #????????????????? | | ???????????????###### #?? #????????????????? | | ????????????????????# ##????????????????? | | ????????????????????## ##?????????????????? | | ?????????????????????# ###??????????????????? | | ?????????????????????# ##????????????????????? | | ????????????????????? ##?????????????????????? | | ????????????????????? ##??????????????????????? | | ????????????????????# ###???????????????????????? | | ????????????????????? #?????????????????????????? | | ????????????????????? ??????????????????????????? | | ????????????????????? ??????????????????????????? | | ?????????????????????????????????????????????????? | | ?????????????????????????????????????????????????? | | ?????????????????????????????????????????????????? | | ?????????????????????????????????????????????????? | | ?????????????????????????????????????????????????? | | ?????????????????????????????????????????????????? | | ?????????????????????????????????????????????????? | | ?????????????????????????????????????????????????? | +----------------------------------------------------+ Best States ------------- Heat Dissipation 25 Energy Generation 10 Energy Capacity 125 Matter Stores 300 Matter Capacity 300 Sight Range 16 Terrain Scan Density 10 Evasion (%) 55 Targeting Accuracy 5 Recoil Reduction 2 Item Schematics ----------------- None Robot Schematics ------------------ None Fabricated ------------ Nothing Alien Tech Used ----------------- None Achievements -------------- root@ Challenges ------------ None Game ------ Seed RegenerativePhaseInjector Manual? 0 Play Time 00:07:25 Cumulative 31.8 hours Start 2024.05.21 @ 01:13:07 End 2024.05.21 @ 01:20:38 Sessions 1 Manual Loads 0 Difficulty Rogue Special Mode None Game No. 52 Rogue 52 Adventurer 0 Explorer 0 Win Type - Total 0 Types 0/0/0/0/0/0/0/0/0 Lore% 23 Gallery% 37 Achievement% 29 Wizard Run 0 Options --------- Layout 1 ASCII 0 Keyboard 0 Movement Mouse Keybinds 0 Fullscreen 1 Font 24/Smallcaps Map View 50x40 Zoom Use 0% Tactical HUD 1 Map Filters NONE Filters NONE Steam 1 RUN: a28164ef-7df1-4598-8b80-dd63a85c5906